[Event "1st Chartres GM 2020"]
[Site "Chartres"]
[Date "2020.10.03"]
[Round "8.1"]
[White "Duboue, Peio"]
[Black "Maurizzi, Marc Andria"]
[Result "0-1"]
[ECO "B22"]
[WhiteElo "2439"]
[BlackElo "2433"]
[Annotator "ChessBase"]
[PlyCount "104"]
[EventDate "2020.09.30"]
[EventType "tourn"]
[EventCountry "FRA"]
[SourceTitle "playchess.com"]
[Source "ChessBase"]
[SourceQuality "1"]
[TimeControl "5400+30"]

1. e4 {[%emt 0:00:00]} c5 {[%emt 0:00:00]} 2. c3 {[%emt 0:00:00]} Nf6 {[%emt 0:00:00]} 3. e5 {[%emt 0:00:00]} Nd5 {[%emt 0:00:00]} 4. d4 {[%emt 0:00:00]} cxd4 {[%emt 0:00:00]} 5. Nf3 {[%emt 0:00:00]} Nc6 {[%emt 0:00:01]} 6. cxd4 {[%emt 0:00:00]} g6 {[%emt 0:00:12]} 7. h4 {[%emt 0:06:25]} h6 {[%emt 0:18:05]} 8. Qb3 {[%emt 0:11:15]} e6 {[%emt 0:00:20]} 9. Nbd2 {[%emt 0:03:59]} d6 {[%emt 0:14:11]} 10. Nc4 {[%emt 0:02:26]} dxe5 {[%emt 0:00:49]} 11. dxe5 {[%emt 0:00:17]} Bb4+ {[%emt 0:00:31]} 12. Bd2 {[%emt 0:00:18]} Bxd2+ {[%emt 0:00:30]} 13. Ncxd2 {[%emt 0:00:47]} O-O {[%emt 0:01:17]} 14. O-O-O {[%emt 0:12:15]} a5 {[%emt 0:11:46]} 15. Ne4 {[%emt 0:02:25]} a4 {[%emt 0:00:40]} 16. Qc2 {[%emt 0:01:16]} a3 {[%emt 0:08:16]} 17. b3 {[%emt 0:09:40]} Bd7 {[%emt 0:02:41]} 18. Kb1 {[%emt 0:21:15]} Kg7 {[%emt 0:08:16]} 19. h5 {[%emt 0:00:34]} Ncb4 {[%emt 0:03:11]} 20. Qd2 {[%emt 0:00:51]} g5 {[%emt 0:00:25]} 21. Rh3 {[%emt 0:04:35]} Rc8 {[%emt 0:06:40]} 22. Bc4 {[%emt 0:00:28]} b5 {[%emt 0:02:54]} 23. Bxd5 {[%emt 0:00:04]} exd5 {[%emt 0:01:02]} 24. Nd6 {[%emt 0:06:37]} Bxh3 {[%emt 0:05:32]} 25. gxh3 {[%emt 0:01:46]} Nc6 {[%emt 0:01:25]} 26. h4 {[%emt 0:02:05]} f6 {[%emt 0:04:15]} 27. Qd3 {[%emt 0:01:26]} Rc7 {[%emt 0:01:01]} 28. Nxb5 {[%emt 0:04:43]} Rb7 {[%emt 0:01:05]} 29. Nd6 {[%emt 0:00:31]} Rc7 {[%emt 0:00:00]} 30. Qg6+ {[%emt 0:01:45]} Kh8 {[%emt 0:00:01]} 31. Rxd5 {[%emt 0:00:32]} Qe7 {[%emt 0:02:14]} 32. Qxh6+ {[%emt 0:01:45]} Qh7+ {[%emt 0:00:08]} 33. Qxh7+ {[%emt 0:00:04]} Rxh7 {[%emt 0:01:34]} 34. exf6 {[%emt 0:03:37]} Rxf6 {[%emt 0:00:40]} 35. Nxg5 {[%emt 0:00:19]} Rxf2 {[%emt 0:00:40]} 36. Rc5 {[%emt 0:01:04]} Re7 {[%emt 0:03:51]} 37. Nde4 {[%emt 0:01:11]} Rb2+ {[%emt 0:00:39]} 38. Kc1 {[%emt 0:00:26]} Nb4 {[%emt 0:00:37]} 39. Rc8+ {[%emt 0:00:50]} Kg7 {[%emt 0:00:02]} 40. Kd1 {[%emt 0:01:54]} Rxa2 {[%emt 0:00:45]} 41. h6+ {[%emt 0:00:32]} Kxh6 {[%emt 0:00:18]} 42. Rh8+ {[%emt 0:00:03]} Kg6 {[%emt 0:00:09]} 43. h5+ {[%emt 0:00:32]} Kf5 {[%emt 0:00:19]} 44. h6 {[%emt 0:00:22]} Rd7+ {[%emt 0:01:38]} 45. Ke1 {[%emt 0:00:23]} Nd3+ {[%emt 0:00:09]} 46. Kf1 {[%emt 0:00:15]} Rc7 {[%emt 0:00:26]} 47. Rf8+ {[%emt 0:00:21]} Kg4 {[%emt 0:00:10]} 48. Kg1 {[%emt 0:00:37]} Rc1+ {[%emt 0:00:56]} 49. Rf1 {[%emt 0:00:04]} Raa1 {[%emt 0:00:13]} 50. Nd2 {[%emt 0:01:12]} Rxf1+ {[%emt 0:00:05]} 51. Nxf1 {[%emt 0:00:02]} Rxf1+ {[%emt 0:00:04]} 52. Kxf1 {[%emt 0:00:03]} a2 {[%emt 0:00:07]} 0-1

[Event "1st Chartres GM 2020"]
[Site "Chartres"]
[Date "2020.10.03"]
[Round "8.3"]
[White "David, Alberto"]
[Black "Loiseau, Quentin"]
[Result "1-0"]
[ECO "B30"]
[WhiteElo "2520"]
[BlackElo "2457"]
[Annotator "ChessBase"]
[PlyCount "25"]
[EventDate "2020.09.30"]
[EventType "tourn"]
[EventCountry "FRA"]
[SourceTitle "playchess.com"]
[Source "ChessBase"]
[SourceQuality "1"]
[TimeControl "5400+30"]

1. e4 {[%emt 0:00:00]} c5 {[%emt 0:00:27]} 2. Nf3 {[%emt 0:00:00]} Nc6 {[%emt 0:00:03]} 3. Bb5 {[%emt 0:00:22]} e6 {[%emt 0:00:07]} 4. O-O {[%emt 0:05:05]} Nge7 {[%emt 0:00:04]} 5. Re1 {[%emt 0:00:27]} Nd4 {[%emt 0:00:13]} 6. Nxd4 {[%emt 0:06:03]} cxd4 {[%emt 0:00:27]} 7. c3 {[%emt 0:02:01]} a6 {[%emt 0:00:28]} 8. Bf1 {[%emt 0:04:53]} Nc6 {[%emt 0:00:05]} 9. d3 {[%emt 0:00:53]} Bc5 {[%emt 0:02:44]} 10. Nd2 {[%emt 0:01:54]} Qf6 {[%emt 0:08:08]} 11. e5 {[%emt 0:04:30]} Nxe5 {[%emt 0:01:35]} 12. Ne4 {[%emt 0:00:08]} Qe7 {[%emt 0:00:16]} 13. Qh5 {[%emt 0:00:31]} 1-0

[Event "1st Chartres GM 2020"]
[Site "Chartres"]
[Date "2020.10.03"]
[Round "8.5"]
[White "Guliyev, Namig"]
[Black "Stephan, Victor"]
[Result "1/2-1/2"]
[ECO "B84"]
[WhiteElo "2529"]
[BlackElo "2439"]
[Annotator "ChessBase"]
[PlyCount "72"]
[EventDate "2020.09.30"]
[EventType "tourn"]
[EventCountry "FRA"]
[SourceTitle "playchess.com"]
[Source "ChessBase"]
[SourceQuality "1"]
[TimeControl "5400+30"]

1. e4 {[%emt 0:00:00]} c5 {[%emt 0:00:00]} 2. Nf3 {[%emt 0:00:00]} Nf6 {[%emt 0:00:00]} 3. Nc3 {[%emt 0:02:09]} d6 {[%emt 0:00:00]} 4. d4 {[%emt 1:29:51]} cxd4 {[%emt 0:00:06]} 5. Nxd4 {[%emt 0:00:00]} a6 {[%emt 0:00:06]} 6. Be2 {[%emt 0:00:00]} e6 {[%emt 0:01:27]} 7. Be3 {[%emt 0:00:00]} Nbd7 {[%emt 0:02:11]} 8. a4 {[%emt 0:00:00]} b6 {[%emt 0:04:08]} 9. f4 {[%emt 0:00:00]} Bb7 {[%emt 0:00:15]} 10. Bf3 {[%emt 0:00:00]} Qc7 {[%emt 0:07:01]} 11. Qe2 {[%emt 0:00:00]} Be7 {[%emt 0:03:25]} 12. g4 {[%emt 0:00:00]} Nc5 {[%emt 0:04:52]} 13. Bd2 {[%emt 0:00:00]} h6 {[%emt 0:08:35]} 14. g5 {[%emt 0:00:00]} hxg5 {[%emt 0:02:00]} 15. fxg5 {[%emt 0:00:00]} Ng8 {[%emt 0:01:08]} 16. O-O-O {[%emt 0:00:00]} g6 {[%emt 0:07:08]} 17. Kb1 {[%emt 0:00:00]} Bf8 {[%emt 0:03:15]} 18. h4 {[%emt 0:00:00]} Bg7 {[%emt 0:03:01]} 19. Bc1 {[%emt 0:00:00]} O-O-O {[%emt 0:00:58]} 20. h5 {[%emt 0:00:00]} gxh5 {[%emt 0:04:03]} 21. Bxh5 {[%emt 0:00:00]} Ne7 {[%emt 0:00:42]} 22. Rhf1 {[%emt 0:00:00]} Ng6 {[%emt 0:04:06]} 23. b4 {[%emt 0:00:00]} Nd7 {[%emt 0:07:11]} 24. Ndb5 {[%emt 0:00:00]} axb5 {[%emt 0:00:44]} 25. Nxb5 {[%emt 0:00:00]} Ba6 {[%emt 0:00:49]} 26. Rxf7 {[%emt 0:00:00]} Bxb5 {[%emt 0:01:39]} 27. Qxb5 {[%emt 0:00:00]} Be5 {[%emt 0:02:50]} 28. Be2 {[%emt 0:00:00]} Rdf8 {[%emt 0:05:25]} 29. Rdf1 {[%emt 0:00:00]} Rxf7 {[%emt 0:01:08]} 30. Rxf7 {[%emt 0:00:00]} Rh2 {[%emt 0:02:59]} 31. Qa6+ {[%emt 0:00:00]} Kb8 {[%emt 0:00:54]} 32. Rxd7 {[%emt 0:00:00]} Qxd7 {[%emt 0:00:30]} 33. Qxb6+ {[%emt 0:00:00]} Qb7 {[%emt 0:01:58]} 34. Qd8+ {[%emt 0:00:00]} Qc8 {[%emt 0:00:26]} 35. Qb6+ {[%emt 0:00:00]} Qb7 {[%emt 0:00:23]} 36. Qd8+ {[%emt 0:00:00]} Qc8 {[%emt 0:00:02]} 1/2-1/2

[Event "1st Chartres GM 2020"]
[Site "Chartres"]
[Date "2020.10.04"]
[Round "9.2"]
[White "Dardha, Daniel"]
[Black "David, Alberto"]
[Result "1/2-1/2"]
[ECO "A48"]
[WhiteElo "2468"]
[BlackElo "2520"]
[Annotator "ChessBase"]
[PlyCount "40"]
[EventDate "2020.09.30"]
[EventType "tourn"]
[EventCountry "FRA"]
[SourceTitle "playchess.com"]
[Source "ChessBase"]
[SourceQuality "1"]
[TimeControl "5400+30"]

1. d4 {[%emt 0:00:00]} Nf6 {[%emt 0:00:00]} 2. Nf3 {[%emt 0:00:00]} b6 {[%emt 0:02:09]} 3. Bf4 {[%emt 0:00:00]} Bb7 {[%emt 0:01:16]} 4. e3 {[%emt 0:00:15]} g6 {[%emt 0:01:46]} 5. Nbd2 {[%emt 0:01:09]} Bg7 {[%emt 0:00:31]} 6. h3 {[%emt 0:00:55]} d6 {[%emt 0:02:50]} 7. Be2 {[%emt 0:01:11]} O-O {[%emt 0:03:55]} 8. O-O {[%emt 0:00:21]} Nbd7 {[%emt 0:00:46]} 9. a4 {[%emt 0:00:54]} a6 {[%emt 0:00:40]} 10. c3 {[%emt 0:04:59]} c5 {[%emt 0:01:45]} 11. Bh2 {[%emt 0:07:49]} Ra7 {[%emt 0:07:02]} 12. Re1 {[%emt 0:12:16]} Qa8 {[%emt 0:03:08]} 13. Bf1 {[%emt 0:05:48]} Ne4 {[%emt 0:08:37]} 14. Qb3 {[%emt 0:05:43]} Nxd2 {[%emt 0:05:02]} 15. Nxd2 {[%emt 0:00:06]} Bc6 {[%emt 0:01:14]} 16. Ra3 {[%emt 0:09:12]} Rc7 {[%emt 0:09:55]} 17. Qc4 {[%emt 0:04:18]} Ra7 {[%emt 0:07:13]} 18. Qd3 {[%emt 0:03:26]} b5 {[%emt 0:05:35]} 19. axb5 {[%emt 0:00:35]} axb5 {[%emt 0:00:49]} 20. Rea1 {[%emt 0:00:51]} Rxa3 {[%emt 0:03:10]} 1/2-1/2

[Event "1st Chartres GM 2020"]
[Site "Chartres"]
[Date "2020.10.04"]
[Round "9.4"]
[White "Fedorchuk, Sergey A."]
[Black "Vlachos, Anatole"]
[Result "1-0"]
[ECO "B70"]
[WhiteElo "2615"]
[BlackElo "2437"]
[Annotator "ChessBase"]
[PlyCount "41"]
[EventDate "2020.09.30"]
[EventType "tourn"]
[EventCountry "FRA"]
[SourceTitle "playchess.com"]
[Source "ChessBase"]
[SourceQuality "1"]
[TimeControl "5400+30"]

1. e4 {[%emt 0:00:00]} c5 {[%emt 0:00:00]} 2. Nf3 {[%emt 0:00:00]} d6 {[%emt 0:00:00]} 3. d4 {[%emt 0:00:16]} cxd4 {[%emt 0:00:00]} 4. Nxd4 {[%emt 0:00:12]} Nf6 {[%emt 0:00:00]} 5. Nc3 {[%emt 0:00:18]} g6 {[%emt 0:00:00]} 6. Be3 {[%emt 0:03:07]} a6 {[%emt 0:00:00]} 7. Be2 {[%emt 0:09:15]} Bg7 {[%emt 0:03:31]} 8. Qd2 {[%emt 0:00:23]} b5 {[%emt 0:00:35]} 9. Bf3 {[%emt 0:27:41]} e5 {[%emt 0:00:30]} 10. Nf5 {[%emt 0:01:20]} Bf8 {[%emt 0:15:17]} 11. O-O-O {[%emt 0:03:28]} d5 {[%emt 0:01:20]} 12. Nxd5 {[%emt 0:17:43]} Nxd5 {[%emt 0:00:16]} 13. Qxd5 {[%emt 0:01:30]} Qxd5 {[%emt 0:00:08]} 14. Rxd5 {[%emt 0:00:03]} gxf5 {[%emt 0:06:48]} 15. Rxe5+ {[%emt 0:04:09]} Kd7 {[%emt 0:00:25]} 16. Rxf5 {[%emt 0:10:28]} Nc6 {[%emt 0:04:25]} 17. e5 {[%emt 0:01:33]} Bb7 {[%emt 0:02:18]} 18. Rxf7+ {[%emt 0:01:02]} Be7 {[%emt 0:00:01]} 19. Rd1+ {[%emt 0:00:22]} Ke8 {[%emt 0:00:07]} 20. Bh5 {[%emt 0:00:15]} Nxe5 {[%emt 0:00:06]} 21. Rxh7+ {[%emt 0:00:38]} 1-0

[Event "1st Chartres GM 2020"]
[Site "Chartres"]
[Date "2020.10.04"]
[Round "9.5"]
[White "Loiseau, Quentin"]
[Black "Duboue, Peio"]
[Result "1-0"]
[ECO "C70"]
[WhiteElo "2457"]
[BlackElo "2439"]
[Annotator "ChessBase"]
[PlyCount "87"]
[EventDate "2020.09.30"]
[EventType "tourn"]
[EventCountry "FRA"]
[SourceTitle "playchess.com"]
[Source "ChessBase"]
[SourceQuality "1"]
[TimeControl "5400+30"]

1. e4 {[%emt 0:00:00]} e5 {[%emt 0:00:00]} 2. Nf3 {[%emt 0:00:05]} Nc6 {[%emt 0:00:00]} 3. Bb5 {[%emt 0:00:11]} g6 {[%emt 0:00:00]} 4. c3 {[%emt 0:00:18]} a6 {[%emt 0:00:00]} 5. Ba4 {[%emt 0:00:07]} Bg7 {[%emt 0:00:00]} 6. d4 {[%emt 0:00:07]} exd4 {[%emt 0:00:01]} 7. cxd4 {[%emt 0:00:05]} b5 {[%emt 0:00:06]} 8. Bc2 {[%emt 0:00:37]} Nge7 {[%emt 0:00:08]} 9. d5 {[%emt 0:01:55]} Na5 {[%emt 0:00:21]} 10. Bd2 {[%emt 0:03:00]} c5 {[%emt 0:00:56]} 11. Bc3 {[%emt 0:00:22]} O-O {[%emt 0:00:20]} 12. h4 {[%emt 0:06:45]} h5 {[%emt 0:21:46]} 13. Bxg7 {[%emt 0:08:11]} Kxg7 {[%emt 0:00:03]} 14. b4 {[%emt 0:00:12]} cxb4 {[%emt 0:00:58]} 15. Qd4+ {[%emt 0:01:00]} Kg8 {[%emt 0:04:47]} 16. Qd2 {[%emt 0:12:13]} Re8 {[%emt 0:05:57]} 17. O-O {[%emt 0:10:35]} Kg7 {[%emt 0:01:20]} 18. Qd4+ {[%emt 0:03:01]} Kg8 {[%emt 0:01:51]} 19. e5 {[%emt 0:07:03]} Bb7 {[%emt 0:07:09]} 20. d6 {[%emt 0:02:15]} Bxf3 {[%emt 0:04:12]} 21. dxe7 {[%emt 0:00:35]} Qc7 {[%emt 0:01:47]} 22. Nd2 {[%emt 0:03:12]} Qxc2 {[%emt 0:06:32]} 23. Nxf3 {[%emt 0:02:39]} Qf5 {[%emt 0:00:18]} 24. Qd2 {[%emt 0:04:49]} Kg7 {[%emt 0:03:49]} 25. Rae1 {[%emt 0:01:32]} Nc6 {[%emt 0:03:57]} 26. Qd6 {[%emt 0:09:06]} Qe6 {[%emt 0:03:44]} 27. Ng5 {[%emt 0:00:04]} Qxe7 {[%emt 0:00:58]} 28. Qd5 {[%emt 0:00:09]} Rac8 {[%emt 0:01:27]} 29. f4 {[%emt 0:00:28]} Nd8 {[%emt 0:00:26]} 30. Rf2 {[%emt 0:05:39]} Qc5 {[%emt 0:08:10]} 31. Qxd7 {[%emt 0:01:03]} Re7 {[%emt 0:00:13]} 32. Qd1 {[%emt 0:00:19]} Rec7 {[%emt 0:11:19]} 33. e6 {[%emt 0:03:44]} f6 {[%emt 0:02:03]} 34. Ne4 {[%emt 0:01:08]} Qb6 {[%emt 0:04:40]} 35. Qd6 {[%emt 0:07:57]} Rb7 {[%emt 0:00:04]} 36. Nxf6 {[%emt 0:04:23]} Rc6 {[%emt 0:02:53]} 37. Nxh5+ {[%emt 0:00:35]} Kg8 {[%emt 0:02:40]} 38. Nf6+ {[%emt 0:00:06]} Kg7 {[%emt 0:00:05]} 39. Nh5+ {[%emt 0:00:10]} Kg8 {[%emt 0:00:04]} 40. Qd3 {[%emt 0:03:35]} Rxe6 {[%emt 0:02:15]} 41. Rxe6 {[%emt 0:00:04]} Nxe6 {[%emt 0:00:49]} 42. Qxg6+ {[%emt 0:00:07]} Ng7 {[%emt 0:00:21]} 43. Nf6+ {[%emt 0:00:20]} Kf8 {[%emt 0:00:04]} 44. Nd7+ {[%emt 0:00:03]} 1-0